[Event "Titled Tuesday Blitz February 15 Early 2022"]
[White "Cori T., Deysi"]
[Black "Rustemov, Alexander"]
[WhiteFideId "3801934"]
[BlackFideId "4119002"]
[WhiteElo "2350"]
[BlackElo "2783"]
[Result "0-1"]
[Round "04"]
[TimeControl "180+1"]
[Date "2022.02.15"]
[WhiteClock "0:00:01"]
[BlackClock "0:00:16"]

1. d4 {[%clk 0:03:00]}  d5 {[%clk 0:02:59]} 2. c4 {[%clk 0:02:59]}  dxc4 {[%clk 0:02:59]} 3. e3 {[%clk 0:02:59]}  e6 {[%clk 0:02:59]} 4. Nf3 {[%clk 0:02:59]}  c5 {[%clk 0:02:59]} 5. Bxc4 {[%clk 0:02:59]}  a6 {[%clk 0:03:00]} 6. O-O {[%clk 0:02:56]}  Nf6 {[%clk 0:03:00]} 7. a4 {[%clk 0:02:54]}  Nc6 {[%clk 0:02:59]} 8. Nc3 {[%clk 0:02:54]}  Be7 {[%clk 0:02:59]} 9. Qe2 {[%clk 0:02:52]}  O-O {[%clk 0:02:53]} 10. Rd1 {[%clk 0:02:52]}  Qc7 {[%clk 0:02:51]} 11. h3 {[%clk 0:02:51]}  b6 {[%clk 0:02:47]} 12. d5 {[%clk 0:02:51]}  exd5 {[%clk 0:02:46]} 13. Nxd5 {[%clk 0:02:52]}  Nxd5 {[%clk 0:02:46]} 14. Bxd5 {[%clk 0:02:53]}  Bb7 {[%clk 0:02:36]} 15. e4 {[%clk 0:02:53]}  Rad8 {[%clk 0:02:13]} 16. Be3 {[%clk 0:02:35]}  Nb4 {[%clk 0:02:10]} 17. Bxb7 {[%clk 0:02:22]}  Qxb7 {[%clk 0:02:11]} 18. Bf4 {[%clk 0:02:14]}  b5 {[%clk 0:02:05]} 19. axb5 {[%clk 0:01:59]}  axb5 {[%clk 0:02:05]} 20. Ne5 {[%clk 0:01:54]}  c4 {[%clk 0:01:57]} 21. Bg3 {[%clk 0:01:42]}  f6 {[%clk 0:01:44]} 22. Ng4 {[%clk 0:00:20]}  Nd3 {[%clk 0:01:34]} 23. Kh2 {[%clk 0:00:21]}  Bc5 {[%clk 0:01:29]} 24. f3 {[%clk 0:00:19]}  Rfe8 {[%clk 0:01:27]} 25. Ne3 {[%clk 0:00:18]}  Bd4 {[%clk 0:01:14]} 26. Nf5 {[%clk 0:00:18]}  Bxb2 {[%clk 0:01:11]} 27. Rab1 {[%clk 0:00:16]}  Be5 {[%clk 0:01:08]} 28. Qc2 {[%clk 0:00:12]}  Bxg3+ {[%clk 0:01:05]} 29. Nxg3 {[%clk 0:00:12]}  Qc6 {[%clk 0:00:51]} 30. Ne2 {[%clk 0:00:09]}  b4 {[%clk 0:00:49]} 31. Rxd3 {[%clk 0:00:07]}  Rxd3 {[%clk 0:00:46]} 32. Nf4 {[%clk 0:00:04]}  Rd4 {[%clk 0:00:26]} 33. g3 {[%clk 0:00:02]}  Qd6 {[%clk 0:00:18]} 34. Ng2 {[%clk 0:00:01]}  b3 {[%clk 0:00:18]} 35. Qc3 {[%clk 0:00:01]}  Rd8 {[%clk 0:00:16]} 0-1


[Site "https://www.chess.com"]

[Event "Titled Tuesday Blitz February 15 Early 2022"]
[White "Coto Mederos, Michel"]
[Black "Ter-Sahakyan, Samvel"]
[WhiteFideId "3508528"]
[BlackFideId "13302531"]
[WhiteElo "2427"]
[BlackElo "2592"]
[Result "1-0"]
[Round "04"]
[TimeControl "180+1"]
[Date "2022.02.15"]
[WhiteClock "0:00:02"]
[BlackClock "0:00:01"]

1. c4 {[%clk 0:03:00]}  e5 {[%clk 0:02:58]} 2. Nc3 {[%clk 0:03:00]}  f5 {[%clk 0:02:56]} 3. g3 {[%clk 0:02:56]}  Nf6 {[%clk 0:02:56]} 4. Bg2 {[%clk 0:02:57]}  g6 {[%clk 0:02:54]} 5. e3 {[%clk 0:02:45]}  Bg7 {[%clk 0:02:54]} 6. Nge2 {[%clk 0:02:46]}  O-O {[%clk 0:02:53]} 7. O-O {[%clk 0:02:36]}  d6 {[%clk 0:02:54]} 8. d4 {[%clk 0:02:37]}  e4 {[%clk 0:02:53]} 9. b4 {[%clk 0:02:27]}  Nc6 {[%clk 0:02:48]} 10. Rb1 {[%clk 0:02:23]}  Kh8 {[%clk 0:02:45]} 11. Nf4 {[%clk 0:02:21]}  Ne7 {[%clk 0:02:41]} 12. Bd2 {[%clk 0:02:02]}  a6 {[%clk 0:02:35]} 13. f3 {[%clk 0:01:51]}  g5 {[%clk 0:02:33]} 14. Nfe2 {[%clk 0:01:48]}  exf3 {[%clk 0:02:33]} 15. Bxf3 {[%clk 0:01:49]}  Qe8 {[%clk 0:02:31]} 16. e4 {[%clk 0:01:24]}  fxe4 {[%clk 0:02:24]} 17. Nxe4 {[%clk 0:01:24]}  Nxe4 {[%clk 0:02:25]} 18. Bxe4 {[%clk 0:01:24]}  Nf5 {[%clk 0:02:25]} 19. Bg2 {[%clk 0:01:12]}  Qg6 {[%clk 0:02:11]} 20. Rb3 {[%clk 0:00:46]}  Bd7 {[%clk 0:01:52]} 21. Rbf3 {[%clk 0:00:35]}  Rae8 {[%clk 0:01:52]} 22. d5 {[%clk 0:00:27]}  c6 {[%clk 0:01:20]} 23. Bc3 {[%clk 0:00:26]}  Bxc3 {[%clk 0:00:51]} 24. Nxc3 {[%clk 0:00:27]}  Qg7 {[%clk 0:00:51]} 25. Qd2 {[%clk 0:00:14]}  h6 {[%clk 0:00:48]} 26. R3f2 {[%clk 0:00:12]}  Kg8 {[%clk 0:00:34]} 27. Ne4 {[%clk 0:00:09]}  cxd5 {[%clk 0:00:17]} 28. Qxd5+ {[%clk 0:00:08]}  Be6 {[%clk 0:00:17]} 29. Qd3 {[%clk 0:00:07]}  Rd8 {[%clk 0:00:12]} 30. g4 {[%clk 0:00:06]}  Nh4 {[%clk 0:00:10]} 31. Rxf8+ {[%clk 0:00:04]}  Rxf8 {[%clk 0:00:10]} 32. Rxf8+ {[%clk 0:00:02]}  Qxf8 {[%clk 0:00:10]} 33. Qxd6 {[%clk 0:00:02]}  Qf7 {[%clk 0:00:05]} 34. Qd8+ {[%clk 0:00:01]}  Kg7 {[%clk 0:00:02]} 35. Qd4+ {[%clk 0:00:02]}  Kg8 {[%clk 0:00:01]} 36. Nd6 {[%clk 0:00:02]} 1-0


[Site "https://www.chess.com"]

[Event "Titled Tuesday Blitz February 15 Early 2022"]
[White "Csonka, Balazs"]
[Black "Bugayev, Vladimir"]
[WhiteFideId "742910"]
[BlackFideId "30901480"]
[WhiteElo "2404"]
[BlackElo "2403"]
[Result "1-0"]
[Round "04"]
[TimeControl "180+1"]
[Date "2022.02.15"]
[WhiteClock "0:00:12"]
[BlackClock "0:00:45"]

1. d4 {[%clk 0:03:00]}  Nf6 {[%clk 0:02:59]} 2. c4 {[%clk 0:02:59]}  c5 {[%clk 0:02:59]} 3. d5 {[%clk 0:02:53]}  b5 {[%clk 0:03:00]} 4. cxb5 {[%clk 0:02:53]}  a6 {[%clk 0:03:01]} 5. f3 {[%clk 0:02:51]}  d6 {[%clk 0:02:53]} 6. e4 {[%clk 0:02:51]}  g6 {[%clk 0:02:53]} 7. Na3 {[%clk 0:02:49]}  Bg7 {[%clk 0:02:53]} 8. Ne2 {[%clk 0:02:48]}  axb5 {[%clk 0:02:45]} 9. Nxb5 {[%clk 0:02:47]}  O-O {[%clk 0:02:41]} 10. Nec3 {[%clk 0:02:46]}  Na6 {[%clk 0:02:41]} 11. Be2 {[%clk 0:02:41]}  Nc7 {[%clk 0:02:37]} 12. O-O {[%clk 0:02:36]}  Nxb5 {[%clk 0:02:32]} 13. Nxb5 {[%clk 0:02:35]}  Ba6 {[%clk 0:02:33]} 14. a4 {[%clk 0:02:30]}  Ne8 {[%clk 0:02:27]} 15. Qc2 {[%clk 0:02:17]}  Nc7 {[%clk 0:02:18]} 16. Ra3 {[%clk 0:01:39]}  Qd7 {[%clk 0:02:10]} 17. Rb3 {[%clk 0:00:51]}  Rfb8 {[%clk 0:01:37]} 18. Nxc7 {[%clk 0:00:49]}  Qxc7 {[%clk 0:01:37]} 19. Bxa6 {[%clk 0:00:32]}  Rxa6 {[%clk 0:01:35]} 20. Rxb8+ {[%clk 0:00:24]}  Qxb8 {[%clk 0:01:35]} 21. Bg5 {[%clk 0:00:18]}  Bxb2 {[%clk 0:00:53]} 22. Bxe7 {[%clk 0:00:18]}  Bd4+ {[%clk 0:00:53]} 23. Kh1 {[%clk 0:00:18]}  Qb4 {[%clk 0:00:47]} 24. Rb1 {[%clk 0:00:13]}  Qxa4 {[%clk 0:00:47]} 25. Qxa4 {[%clk 0:00:12]}  Rxa4 {[%clk 0:00:47]} 26. Bxd6 {[%clk 0:00:10]}  c4 {[%clk 0:00:48]} 27. e5 {[%clk 0:00:10]}  c3 {[%clk 0:00:48]} 28. Rb8+ {[%clk 0:00:10]}  Kg7 {[%clk 0:00:45]} 29. Bf8+ {[%clk 0:00:11]}  Kg8 {[%clk 0:00:44]} 30. Be7+ {[%clk 0:00:11]}  Kg7 {[%clk 0:00:44]} 31. Bf8+ {[%clk 0:00:11]}  Kg8 {[%clk 0:00:45]} 32. Bh6# {[%clk 0:00:12]} 1-0


[Site "https://www.chess.com"]

[Event "Titled Tuesday Blitz February 15 Early 2022"]
[White "Daneshvar, Bardiya"]
[Black "Tsydypov, Zhamsaran"]
[WhiteFideId "12576468"]
[BlackFideId "4108566"]
[WhiteElo "2295"]
[BlackElo "2614"]
[Result "1-0"]
[Round "04"]
[TimeControl "180+1"]
[Date "2022.02.15"]
[WhiteClock "0:00:07"]
[BlackClock "0:00:05"]

1. d4 {[%clk 0:03:00]}  Nf6 {[%clk 0:02:59]} 2. c4 {[%clk 0:03:00]}  e6 {[%clk 0:02:57]} 3. e3 {[%clk 0:02:58]}  d5 {[%clk 0:02:56]} 4. Nf3 {[%clk 0:02:58]}  b6 {[%clk 0:02:54]} 5. b3 {[%clk 0:02:57]}  Bb7 {[%clk 0:02:54]} 6. Bb2 {[%clk 0:02:57]}  Bb4+ {[%clk 0:02:53]} 7. Nbd2 {[%clk 0:02:55]}  O-O {[%clk 0:02:53]} 8. Bd3 {[%clk 0:02:51]}  Nbd7 {[%clk 0:02:53]} 9. O-O {[%clk 0:02:51]}  a5 {[%clk 0:02:51]} 10. a3 {[%clk 0:02:44]}  Be7 {[%clk 0:02:51]} 11. Qe2 {[%clk 0:02:40]}  Ne4 {[%clk 0:02:48]} 12. Rfc1 {[%clk 0:02:28]}  Bd6 {[%clk 0:02:45]} 13. cxd5 {[%clk 0:02:16]}  exd5 {[%clk 0:02:45]} 14. Bb5 {[%clk 0:02:16]}  Ndf6 {[%clk 0:02:38]} 15. Bc6 {[%clk 0:02:12]}  Qc8 {[%clk 0:02:37]} 16. Nxe4 {[%clk 0:02:06]}  Nxe4 {[%clk 0:02:35]} 17. Nd2 {[%clk 0:02:06]}  Bxc6 {[%clk 0:02:25]} 18. Nxe4 {[%clk 0:01:58]}  dxe4 {[%clk 0:02:16]} 19. Rxc6 {[%clk 0:01:56]}  Qf5 {[%clk 0:02:14]} 20. a4 {[%clk 0:01:51]}  Rfe8 {[%clk 0:02:01]} 21. Ba3 {[%clk 0:01:26]}  Bxa3 {[%clk 0:01:58]} 22. Rxa3 {[%clk 0:01:27]}  Re7 {[%clk 0:01:42]} 23. Ra2 {[%clk 0:01:25]}  h5 {[%clk 0:01:33]} 24. Rac2 {[%clk 0:01:23]}  Ra7 {[%clk 0:01:33]} 25. h3 {[%clk 0:01:16]}  g6 {[%clk 0:01:33]} 26. Qe1 {[%clk 0:01:11]}  Qd5 {[%clk 0:01:28]} 27. R2c4 {[%clk 0:01:08]}  Re6 {[%clk 0:01:28]} 28. Qc3 {[%clk 0:01:00]}  Re7 {[%clk 0:01:17]} 29. Qb2 {[%clk 0:00:43]}  Rb7 {[%clk 0:01:15]} 30. Rc2 {[%clk 0:00:41]}  Kh7 {[%clk 0:01:13]} 31. Qc3 {[%clk 0:00:41]}  Ra7 {[%clk 0:01:09]} 32. Qc4 {[%clk 0:00:40]}  Qf5 {[%clk 0:01:10]} 33. d5 {[%clk 0:00:29]}  Rd7 {[%clk 0:01:09]} 34. Rd2 {[%clk 0:00:29]}  Rb7 {[%clk 0:01:05]} 35. Rd4 {[%clk 0:00:24]}  Kg7 {[%clk 0:01:02]} 36. Qc3 {[%clk 0:00:24]}  Kh7 {[%clk 0:01:02]} 37. Qc4 {[%clk 0:00:22]}  Kg7 {[%clk 0:01:01]} 38. Qb5 {[%clk 0:00:23]}  Rb8 {[%clk 0:00:47]} 39. Qc4 {[%clk 0:00:16]}  Rbd8 {[%clk 0:00:45]} 40. Rxc7 {[%clk 0:00:16]}  Rxd5 {[%clk 0:00:45]} 41. Rxd5 {[%clk 0:00:14]}  Rxd5 {[%clk 0:00:42]} 42. Qc3+ {[%clk 0:00:10]}  Kh6 {[%clk 0:00:35]} 43. Qh8+ {[%clk 0:00:08]}  Kg5 {[%clk 0:00:35]} 44. Rc1 {[%clk 0:00:08]}  Rd2 {[%clk 0:00:33]} 45. Rf1 {[%clk 0:00:07]}  Qe6 {[%clk 0:00:26]} 46. f4+ {[%clk 0:00:04]}  exf3 {[%clk 0:00:26]} 47. Rxf3 {[%clk 0:00:05]}  Qd6 {[%clk 0:00:19]} 48. Rf4 {[%clk 0:00:03]}  Qxf4 {[%clk 0:00:06]} 49. exf4+ {[%clk 0:00:04]}  Kxf4 {[%clk 0:00:05]} 50. Qh6+ {[%clk 0:00:04]}  g5 {[%clk 0:00:05]} 51. Qf6+ {[%clk 0:00:03]}  Ke4 {[%clk 0:00:05]} 52. Qxg5 {[%clk 0:00:04]}  Rd3 {[%clk 0:00:06]} 53. Qxh5 {[%clk 0:00:04]}  Rxb3 {[%clk 0:00:06]} 54. Qxf7 {[%clk 0:00:04]}  Rb4 {[%clk 0:00:06]} 55. Qe8+ {[%clk 0:00:04]}  Kd3 {[%clk 0:00:06]} 56. Kh2 {[%clk 0:00:04]}  Kc2 {[%clk 0:00:06]} 57. Qc6+ {[%clk 0:00:04]}  Kb3 {[%clk 0:00:07]} 58. h4 {[%clk 0:00:05]}  Rxh4+ {[%clk 0:00:07]} 59. Kg3 {[%clk 0:00:05]}  Rb4 {[%clk 0:00:07]} 60. Kf3 {[%clk 0:00:06]}  b5 {[%clk 0:00:07]} 61. axb5 {[%clk 0:00:06]}  a4 {[%clk 0:00:07]} 62. b6 {[%clk 0:00:06]}  a3 {[%clk 0:00:08]} 63. b7 {[%clk 0:00:06]}  a2 {[%clk 0:00:08]} 64. Qa6 {[%clk 0:00:06]}  Kb2 {[%clk 0:00:07]} 65. Qf6+ {[%clk 0:00:04]}  Kb1 {[%clk 0:00:08]} 66. Qf5+ {[%clk 0:00:04]}  Kb2 {[%clk 0:00:08]} 67. Qe5+ {[%clk 0:00:04]}  Kb3 {[%clk 0:00:07]} 68. b8=Q {[%clk 0:00:05]}  Rxb8 {[%clk 0:00:04]} 69. Qxb8+ {[%clk 0:00:06]}  Kc2 {[%clk 0:00:05]} 70. Qh8 {[%clk 0:00:07]} 1-0


[Site "https://www.chess.com"]

[Event "Titled Tuesday Blitz February 15 Early 2022"]
[White "Deac, Bogdan-Daniel"]
[Black "Nogerbek, Kazybek"]
[WhiteFideId "1226380"]
[BlackFideId "13710427"]
[WhiteElo "2646"]
[BlackElo "2478"]
[Result "0-1"]
[Round "04"]
[TimeControl "180+1"]
[Date "2022.02.15"]
[WhiteClock "0:00:01"]
[BlackClock "0:00:10"]

1. Nf3 {[%clk 0:03:00]}  d5 {[%clk 0:02:14]} 2. g3 {[%clk 0:03:00]}  c6 {[%clk 0:02:12]} 3. Bg2 {[%clk 0:02:57]}  Bf5 {[%clk 0:02:13]} 4. O-O {[%clk 0:02:51]}  Nf6 {[%clk 0:02:12]} 5. d3 {[%clk 0:02:50]}  h6 {[%clk 0:02:11]} 6. c4 {[%clk 0:02:32]}  e6 {[%clk 0:02:11]} 7. Qb3 {[%clk 0:02:31]}  Qb6 {[%clk 0:02:06]} 8. Qc2 {[%clk 0:02:31]}  Nbd7 {[%clk 0:02:05]} 9. cxd5 {[%clk 0:02:07]}  cxd5 {[%clk 0:01:50]} 10. Be3 {[%clk 0:02:06]}  Bc5 {[%clk 0:01:50]} 11. Bxc5 {[%clk 0:02:06]}  Qxc5 {[%clk 0:01:50]} 12. Qxc5 {[%clk 0:02:05]}  Nxc5 {[%clk 0:01:51]} 13. Rc1 {[%clk 0:02:05]}  Ncd7 {[%clk 0:01:33]} 14. Nd4 {[%clk 0:01:45]}  Bg6 {[%clk 0:01:31]} 15. Rc7 {[%clk 0:01:43]}  Rb8 {[%clk 0:01:30]} 16. Nd2 {[%clk 0:01:37]}  Ke7 {[%clk 0:01:30]} 17. Rac1 {[%clk 0:01:32]}  Ne8 {[%clk 0:01:28]} 18. R7c3 {[%clk 0:01:31]}  Nd6 {[%clk 0:01:28]} 19. f4 {[%clk 0:01:32]}  Rhc8 {[%clk 0:01:26]} 20. e4 {[%clk 0:01:17]}  Rxc3 {[%clk 0:01:26]} 21. Rxc3 {[%clk 0:01:16]}  dxe4 {[%clk 0:01:26]} 22. dxe4 {[%clk 0:01:16]}  e5 {[%clk 0:01:23]} 23. N4b3 {[%clk 0:00:30]}  f6 {[%clk 0:01:18]} 24. Kf2 {[%clk 0:00:27]}  Rc8 {[%clk 0:01:17]} 25. Rxc8 {[%clk 0:00:26]}  Nxc8 {[%clk 0:01:18]} 26. Ke3 {[%clk 0:00:26]}  Nd6 {[%clk 0:01:18]} 27. Nc1 {[%clk 0:00:23]}  a5 {[%clk 0:01:16]} 28. Nd3 {[%clk 0:00:22]}  Bf7 {[%clk 0:01:13]} 29. b3 {[%clk 0:00:22]}  Be6 {[%clk 0:01:11]} 30. Nf3 {[%clk 0:00:17]}  exf4+ {[%clk 0:01:02]} 31. gxf4 {[%clk 0:00:16]}  g5 {[%clk 0:01:02]} 32. Nd4 {[%clk 0:00:14]}  a4 {[%clk 0:00:30]} 33. Nxe6 {[%clk 0:00:08]}  axb3 {[%clk 0:00:28]} 34. axb3 {[%clk 0:00:04]}  Kxe6 {[%clk 0:00:28]} 35. Bh3+ {[%clk 0:00:04]}  f5 {[%clk 0:00:21]} 36. fxg5 {[%clk 0:00:03]}  hxg5 {[%clk 0:00:21]} 37. exf5+ {[%clk 0:00:02]}  Nxf5+ {[%clk 0:00:21]} 38. Kf3 {[%clk 0:00:03]}  Kf6 {[%clk 0:00:13]} 39. Ke4 {[%clk 0:00:02]}  Nd6+ {[%clk 0:00:06]} 40. Kd5 {[%clk 0:00:02]}  Ke7 {[%clk 0:00:07]} 41. Bxd7 {[%clk 0:00:02]}  Kxd7 {[%clk 0:00:08]} 42. Ke5 {[%clk 0:00:02]}  Nb5 {[%clk 0:00:07]} 43. Kf6 {[%clk 0:00:02]}  g4 {[%clk 0:00:07]} 44. Kg5 {[%clk 0:00:01]}  Nd4 {[%clk 0:00:08]} 45. Kxg4 {[%clk 0:00:01]}  Nxb3 {[%clk 0:00:08]} 46. h4 {[%clk 0:00:02]}  Ke6 {[%clk 0:00:09]} 47. Kg5 {[%clk 0:00:02]}  Nd4 {[%clk 0:00:10]} 48. Kg6 {[%clk 0:00:02]}  Nc6 {[%clk 0:00:09]} 49. h5 {[%clk 0:00:02]}  Ne7+ {[%clk 0:00:10]} 50. Kg7 {[%clk 0:00:02]}  b5 {[%clk 0:00:10]} 51. Nb4 {[%clk 0:00:01]}  Kd6 {[%clk 0:00:10]} 52. Kf6 {[%clk 0:00:01]}  Kd7 {[%clk 0:00:10]} 0-1


[Site "https://www.chess.com"]

[Event "Titled Tuesday Blitz February 15 Early 2022"]
[White "Delorme, Alban"]
[Black "Chernomordik, Pavel"]
[WhiteFideId "623636"]
[BlackFideId "2804530"]
[WhiteElo "2197"]
[BlackElo "2249"]
[Result "0-1"]
[Round "04"]
[TimeControl "180+1"]
[Date "2022.02.15"]
[WhiteClock "0:00:01"]
[BlackClock "0:00:59"]

1. e4 {[%clk 0:03:00]}  g6 {[%clk 0:02:58]} 2. d4 {[%clk 0:03:00]}  Bg7 {[%clk 0:02:57]} 3. Nc3 {[%clk 0:02:59]}  d6 {[%clk 0:02:57]} 4. Be3 {[%clk 0:03:00]}  a6 {[%clk 0:02:57]} 5. Qd2 {[%clk 0:02:59]}  b5 {[%clk 0:02:57]} 6. a3 {[%clk 0:02:58]}  Bb7 {[%clk 0:02:57]} 7. f3 {[%clk 0:02:58]}  Nd7 {[%clk 0:02:56]} 8. O-O-O {[%clk 0:02:56]}  c5 {[%clk 0:02:49]} 9. Nge2 {[%clk 0:02:56]}  Qc7 {[%clk 0:02:46]} 10. h4 {[%clk 0:02:53]}  h6 {[%clk 0:02:45]} 11. h5 {[%clk 0:02:48]}  g5 {[%clk 0:02:44]} 12. dxc5 {[%clk 0:02:41]}  Nxc5 {[%clk 0:02:40]} 13. Kb1 {[%clk 0:02:33]}  Nf6 {[%clk 0:02:33]} 14. Nd4 {[%clk 0:02:32]}  Nfd7 {[%clk 0:02:26]} 15. Nf5 {[%clk 0:02:28]}  Bf6 {[%clk 0:02:19]} 16. Bd4 {[%clk 0:02:25]}  O-O-O {[%clk 0:02:09]} 17. Bxb5 {[%clk 0:02:12]}  axb5 {[%clk 0:02:07]} 18. Nxb5 {[%clk 0:02:13]}  Qb6 {[%clk 0:02:05]} 19. Bxf6 {[%clk 0:01:36]}  Nxf6 {[%clk 0:02:02]} 20. Nxe7+ {[%clk 0:01:34]}  Kb8 {[%clk 0:02:02]} 21. Nc3 {[%clk 0:01:19]}  Rhe8 {[%clk 0:01:53]} 22. Nf5 {[%clk 0:01:17]}  d5 {[%clk 0:01:49]} 23. exd5 {[%clk 0:00:59]}  Nxd5 {[%clk 0:01:44]} 24. Nxd5 {[%clk 0:00:46]}  Rxd5 {[%clk 0:01:44]} 25. Nd4 {[%clk 0:00:13]}  Red8 {[%clk 0:01:37]} 26. c3 {[%clk 0:00:10]}  Ba6 {[%clk 0:01:29]} 27. Qe3 {[%clk 0:00:07]}  Na4 {[%clk 0:01:26]} 28. Rd2 {[%clk 0:00:05]}  Rc8 {[%clk 0:01:19]} 29. Rc1 {[%clk 0:00:04]}  Bc4 {[%clk 0:01:15]} 30. b3 {[%clk 0:00:01]}  Bxb3 {[%clk 0:01:10]} 31. Ka1 {[%clk 0:00:02]}  Qc5 {[%clk 0:01:01]} 32. Nxb3 {[%clk 0:00:01]}  Qxe3 {[%clk 0:00:59]} 0-1


[Site "https://www.chess.com"]

[Event "Titled Tuesday Blitz February 15 Early 2022"]
[White "Demin, Vladimir"]
[Black "Kamsky, Gata"]
[WhiteFideId "4167457"]
[BlackFideId "2000024"]
[WhiteElo "2473"]
[BlackElo "2645"]
[Result "0-1"]
[Round "04"]
[TimeControl "180+1"]
[Date "2022.02.15"]
[WhiteClock "0:00:02"]
[BlackClock "0:00:17"]

1. d4 {[%clk 0:03:00]}  d5 {[%clk 0:02:59]} 2. Bf4 {[%clk 0:03:00]}  Nf6 {[%clk 0:02:58]} 3. Nc3 {[%clk 0:02:58]}  c6 {[%clk 0:02:57]} 4. f3 {[%clk 0:02:55]}  Bf5 {[%clk 0:02:54]} 5. e3 {[%clk 0:02:48]}  e6 {[%clk 0:02:52]} 6. Bd3 {[%clk 0:02:38]}  Bxd3 {[%clk 0:02:51]} 7. Qxd3 {[%clk 0:02:38]}  Bd6 {[%clk 0:02:49]} 8. Bxd6 {[%clk 0:02:34]}  Qxd6 {[%clk 0:02:48]} 9. e4 {[%clk 0:02:34]}  dxe4 {[%clk 0:02:46]} 10. fxe4 {[%clk 0:02:35]}  e5 {[%clk 0:02:46]} 11. dxe5 {[%clk 0:02:17]}  Qxe5 {[%clk 0:02:44]} 12. Nf3 {[%clk 0:02:17]}  Qe7 {[%clk 0:02:39]} 13. e5 {[%clk 0:02:01]}  Nfd7 {[%clk 0:02:29]} 14. O-O-O {[%clk 0:01:58]}  Nc5 {[%clk 0:02:11]} 15. Qf5 {[%clk 0:01:43]}  Nbd7 {[%clk 0:02:00]} 16. Rd6 {[%clk 0:01:17]}  g6 {[%clk 0:01:43]} 17. Qf4 {[%clk 0:00:59]}  Ne6 {[%clk 0:01:33]} 18. Qd2 {[%clk 0:00:55]}  O-O-O {[%clk 0:01:31]} 19. Rd1 {[%clk 0:00:48]}  f5 {[%clk 0:01:27]} 20. exf6 {[%clk 0:00:44]}  Nxf6 {[%clk 0:01:26]} 21. Ne5 {[%clk 0:00:24]}  Rxd6 {[%clk 0:01:26]} 22. Qxd6 {[%clk 0:00:24]}  Qxd6 {[%clk 0:01:26]} 23. Rxd6 {[%clk 0:00:24]}  Re8 {[%clk 0:01:26]} 24. b4 {[%clk 0:00:09]}  Kc7 {[%clk 0:01:26]} 25. Rd1 {[%clk 0:00:09]}  Nf4 {[%clk 0:01:21]} 26. Rf1 {[%clk 0:00:06]}  g5 {[%clk 0:01:06]} 27. Nd3 {[%clk 0:00:05]}  Nxd3+ {[%clk 0:01:03]} 28. cxd3 {[%clk 0:00:06]}  Re6 {[%clk 0:01:01]} 29. Kd2 {[%clk 0:00:06]}  h6 {[%clk 0:01:00]} 30. Rf5 {[%clk 0:00:07]}  a6 {[%clk 0:00:53]} 31. a4 {[%clk 0:00:07]}  Kd6 {[%clk 0:00:43]} 32. h3 {[%clk 0:00:07]}  Ke7 {[%clk 0:00:41]} 33. b5 {[%clk 0:00:06]}  axb5 {[%clk 0:00:34]} 34. axb5 {[%clk 0:00:07]}  Nh5 {[%clk 0:00:31]} 35. bxc6 {[%clk 0:00:07]}  bxc6 {[%clk 0:00:30]} 36. Ra5 {[%clk 0:00:06]}  Nf4 {[%clk 0:00:29]} 37. Ne4 {[%clk 0:00:04]}  Nxg2 {[%clk 0:00:26]} 38. Ra7+ {[%clk 0:00:04]}  Kf8 {[%clk 0:00:27]} 39. Kc3 {[%clk 0:00:04]}  Nf4 {[%clk 0:00:26]} 40. Ra8+ {[%clk 0:00:02]}  Kg7 {[%clk 0:00:26]} 41. Rd8 {[%clk 0:00:01]}  Nxh3 {[%clk 0:00:25]} 42. Nc5 {[%clk 0:00:02]}  Re7 {[%clk 0:00:23]} 43. Rd6 {[%clk 0:00:01]}  g4 {[%clk 0:00:23]} 44. Ne4 {[%clk 0:00:01]}  h5 {[%clk 0:00:22]} 45. Ng3 {[%clk 0:00:01]}  Re5 {[%clk 0:00:21]} 46. Rxc6 {[%clk 0:00:01]}  h4 {[%clk 0:00:21]} 47. Rc7+ {[%clk 0:00:02]}  Kg6 {[%clk 0:00:20]} 48. Ne4 {[%clk 0:00:02]}  g3 {[%clk 0:00:20]} 49. Rc6+ {[%clk 0:00:02]}  Kh5 {[%clk 0:00:19]} 50. Rc8 {[%clk 0:00:01]}  Ng5 {[%clk 0:00:19]} 51. Rh8+ {[%clk 0:00:01]}  Kg4 {[%clk 0:00:19]} 52. Rg8 {[%clk 0:00:02]}  g2 {[%clk 0:00:18]} 53. Nf2+ {[%clk 0:00:02]}  Kf3 {[%clk 0:00:18]} 54. Nh3 {[%clk 0:00:01]}  Nxh3 {[%clk 0:00:18]} 55. d4 {[%clk 0:00:02]}  Rg5 {[%clk 0:00:17]} 0-1


[Site "https://www.chess.com"]

[Event "Titled Tuesday Blitz February 15 Early 2022"]
[White "Dev, Shah"]
[Black "Ponkratov, Pavel"]
[WhiteFideId "35019058"]
[BlackFideId "4157800"]
[WhiteElo "2098"]
[BlackElo "2487"]
[Result "0-1"]
[Round "04"]
[TimeControl "180+1"]
[Date "2022.02.15"]
[WhiteClock "0:02:38"]
[BlackClock "0:02:52"]

1. d4 {[%clk 0:03:00]}  Nf6 {[%clk 0:02:59]} 2. c4 {[%clk 0:03:01]}  e5 {[%clk 0:02:59]} 3. dxe5 {[%clk 0:02:59]}  Ng4 {[%clk 0:03:00]} 4. Nf3 {[%clk 0:02:59]}  Bc5 {[%clk 0:02:59]} 5. e3 {[%clk 0:02:59]}  Nc6 {[%clk 0:03:00]} 6. Nc3 {[%clk 0:02:58]}  O-O {[%clk 0:02:59]} 7. Be2 {[%clk 0:02:55]}  Re8 {[%clk 0:02:59]} 8. O-O {[%clk 0:02:55]}  a5 {[%clk 0:03:00]} 9. Na4 {[%clk 0:02:52]}  Bf8 {[%clk 0:02:58]} 10. b3 {[%clk 0:02:52]}  Ncxe5 {[%clk 0:02:58]} 11. Nxe5 {[%clk 0:02:51]}  Nxe5 {[%clk 0:02:58]} 12. c5 {[%clk 0:02:51]}  d6 {[%clk 0:02:56]} 13. cxd6 {[%clk 0:02:52]}  Bxd6 {[%clk 0:02:56]} 14. Bb2 {[%clk 0:02:53]}  Qh4 {[%clk 0:02:54]} 15. Qd4 {[%clk 0:02:38]}  Nf3+ {[%clk 0:02:52]} 0-1


[Site "https://www.chess.com"]

[Event "Titled Tuesday Blitz February 15 Early 2022"]
[White "Devaev, Alexander"]
[Black "Kett, Tim"]
[WhiteFideId "4169395"]
[BlackFideId "1801210"]
[WhiteElo "2185"]
[BlackElo "2098"]
[Result "1-0"]
[Round "04"]
[TimeControl "180+1"]
[Date "2022.02.15"]
[WhiteClock "0:01:53"]
[BlackClock "0:01:12"]

1. d4 {[%clk 0:02:57]}  d5 {[%clk 0:02:59]} 2. c4 {[%clk 0:02:58]}  e6 {[%clk 0:02:59]} 3. Nc3 {[%clk 0:02:58]}  Nf6 {[%clk 0:02:59]} 4. Bg5 {[%clk 0:02:57]}  Be7 {[%clk 0:02:59]} 5. Bxf6 {[%clk 0:02:57]}  Bxf6 {[%clk 0:02:59]} 6. cxd5 {[%clk 0:02:58]}  exd5 {[%clk 0:02:58]} 7. e3 {[%clk 0:02:59]}  O-O {[%clk 0:02:48]} 8. Bd3 {[%clk 0:02:59]}  c5 {[%clk 0:02:45]} 9. dxc5 {[%clk 0:02:58]}  d4 {[%clk 0:02:32]} 10. exd4 {[%clk 0:02:53]}  Bxd4 {[%clk 0:02:30]} 11. Nge2 {[%clk 0:02:54]}  Bxc5 {[%clk 0:02:28]} 12. O-O {[%clk 0:02:54]}  Nc6 {[%clk 0:02:27]} 13. Rc1 {[%clk 0:02:46]}  Be6 {[%clk 0:02:22]} 14. Nf4 {[%clk 0:02:34]}  Re8 {[%clk 0:01:29]} 15. Qh5 {[%clk 0:02:04]}  Qf6 {[%clk 0:01:12]} 16. Nxe6 {[%clk 0:01:53]} 1-0


[Site "https://www.chess.com"]